bitfinex/quotes_BTCUSD_20251007
["timestamp","ask_amount","ask_price","bid_price","bid_amount"]
[1759862684503,0.16542597,120900.0,120890.0,5.75451687]
[1759862684677,0.40082597,120900.0,120890.0,5.75451687]
[1759862684900,0.19853271,120910.0,120890.0,5.75451687]
[1759862685106,0.53853271,120910.0,120900.0,0.61632687]
[1759862685309,0.77393271,120910.0,120900.0,0.66058687]
[1759862685488,0.43389271,120910.0,120900.0,0.91994284]
[1759862685697,0.16542597,120900.0,120890.0,5.45088722]
[1759862685904,0.21137597,120900.0,120890.0,5.66058687]
[1759862686113,0.04595,120900.0,120890.0,5.66058687]
[1759862686489,0.21189373,120900.0,120890.0,5.66058687]
[1759862687038,0.16594373,120900.0,120890.0,5.66058687]
[1759862687303,0.16594373,120900.0,120890.0,5.75451687]
[1759862687874,0.40130373,120900.0,120890.0,5.75451687]
[1759862688073,0.40230373,120900.0,120890.0,5.75451687]
[1759862688283,0.40230373,120900.0,120890.0,5.83451367]
[1759862688542,0.40230373,120900.0,120890.0,5.2181868]
[1759862688753,0.44825373,120900.0,120890.0,5.68675687]
[1759862690516,0.44825373,120900.0,120890.0,5.66058687]
[1759862690717,0.44825373,120900.0,120890.0,5.45088722]
[1759862690924,0.44825373,120900.0,120890.0,5.61632687]
[1759862692645,0.44825373,120900.0,120890.0,5.66058687]
[1759862693145,0.44825373,120900.0,120890.0,5.68675687]
[1759862693382,0.44825373,120900.0,120890.0,5.66058687]
[1759862696079,1.21260266,120900.0,120890.0,4.83456035]
[1759862696276,1.24245266,120900.0,120890.0,4.83456035]
[1759862696842,2.19877953,120900.0,120890.0,4.83456035]
[1759862697359,2.22362578,120900.0,120890.0,4.83456035]
[1759862699044,1.37193891,120900.0,120890.0,4.83456035]
[1759862699259,1.69070891,120900.0,120890.0,4.83456035]
[1759862701380,1.36930891,120900.0,120890.0,4.83456035]
[1759862701547,1.69070891,120900.0,120890.0,4.83456035]
[1759862702318,0.75298204,120900.0,120890.0,4.83456035]
[1759862702543,0.00151776,120900.0,120890.0,5.86210367]
[1759862702751,0.23687776,120900.0,120890.0,5.88995367]
[1759862702964,0.00151776,120900.0,120890.0,6.77010054]
[1759862703167,0.27456146,120930.0,120900.0,0.16541443]
[1759862703168,0.40077229,120910.0,120900.0,0.16541443]
[1759862703376,0.17483096,120920.0,120900.0,1.52247638]
[1759862703583,0.23536,120910.0,120900.0,0.93373951]
[1759862704052,0.23536,120910.0,120900.0,0.95990951]
[1759862704276,0.23536,120910.0,120900.0,0.33134584]
[1759862704511,0.40077229,120910.0,120900.0,0.33134584]
[1759862704739,0.40073229,120910.0,120900.0,0.94767271]
[1759862705200,0.44668229,120910.0,120900.0,0.66073828]
[1759862705472,0.44668229,120910.0,120900.0,0.00015141]
[1759862705698,0.51158229,120910.0,120900.0,0.61647828]
[1759862705944,0.44668229,120910.0,120900.0,0.00215141]
[1759862706183,0.40186944,120920.0,120910.0,0.16541229]
[1759862706437,0.63718944,120920.0,120910.0,0.94751916]
[1759862706912,0.80258805,120920.0,120910.0,0.94751916]
[1759862707127,0.40071861,120920.0,120910.0,0.94751916]
[1759862707345,0.40071861,120920.0,120900.0,0.19274738]
[1759862707346,0.16541229,120910.0,120900.0,0.19274738]
[1759862707560,0.16541229,120910.0,120900.0,0.16657738]
[1759862707775,0.16541229,120910.0,120900.0,0.23700738]
[1759862707982,0.21136229,120910.0,120900.0,0.00315141]
[1759862708199,0.21136229,120910.0,120900.0,0.00215141]
[1759862708391,0.21136229,120910.0,120900.0,0.61847828]
[1759862708608,0.21136229,120910.0,120900.0,0.00215141]
[1759862708828,0.27626229,120910.0,120900.0,0.00215141]
[1759862709039,0.27677999,120910.0,120900.0,0.00215141]
[1759862709698,0.30399999,120910.0,120900.0,0.00215141]
[1759862709908,0.30399999,120910.0,120900.0,0.00315141]
[1759862710121,1.08948892,120910.0,120900.0,0.00315141]
[1759862710386,1.45163892,120910.0,120900.0,0.00315141]
[1759862710784,2.95885092,120910.0,120900.0,0.00315141]
[1759862711206,2.95885092,120910.0,120900.0,0.00015141]
[1759862711415,2.98469663,120910.0,120900.0,0.00015141]
[1759862711626,7.1239634,120910.0,120900.0,0.00015141]
[1759862711833,7.16041473,120910.0,120900.0,0.00015141]
[1759862712051,2.16041473,120910.0,120900.0,0.00015141]
[1759862712255,7.16341473,120910.0,120900.0,0.00015141]
[1759862713068,1.55107996,120910.0,120900.0,0.00015141]
[1759862713274,1.26989019,120910.0,120900.0,0.00015141]
[1759862713474,2.2546271,120910.0,120900.0,0.00015141]
[1759862713714,2.1921701,120910.0,120900.0,0.00015141]
[1759862713914,1.7231231,120910.0,120900.0,0.00015141]
[1759862714090,2.5561821,120910.0,120900.0,0.00015141]
[1759862714292,2.8347241,120910.0,120900.0,0.00015141]
[1759862714495,1.7231231,120910.0,120900.0,0.00015141]
[1759862714694,2.8778841,120910.0,120900.0,0.00015141]
[1759862714900,2.6978841,120910.0,120900.0,0.00015141]
[1759862715097,2.73913916,120910.0,120900.0,0.00015141]
[1759862715309,1.16312606,120910.0,120900.0,0.00015141]
[1759862715636,0.41883131,120910.0,120900.0,0.41490141]
[1759862715837,0.16541229,120910.0,120900.0,0.41490141]
[1759862716037,0.66541229,120910.0,120900.0,0.49893141]
[1759862716184,0.98677229,120910.0,120900.0,0.49893141]
[1759862716554,0.48677229,120910.0,120900.0,0.49893141]
[1759862716953,0.40073229,120910.0,120900.0,0.56790141]
[1759862717192,0.48677229,120910.0,120900.0,0.58767971]
[1759862717325,0.48677229,120910.0,120900.0,0.22790141]
[1759862717947,0.47677229,120910.0,120900.0,0.22790141]
[1759862718551,0.15541229,120910.0,120900.0,0.39332738]
[1759862718878,0.47677229,120910.0,120900.0,0.73332738]
[1759862719083,0.49335229,120910.0,120900.0,0.56790141]
[1759862719287,0.49335229,120910.0,120900.0,0.39332738]
[1759862719716,0.49335229,120910.0,120900.0,0.47332418]
[1759862720271,0.01658,120910.0,120900.0,0.39332738]
[1759862720527,0.18199229,120910.0,120900.0,0.39332738]
[1759862721040,0.01658,120910.0,120900.0,0.39332738]
[1759862721458,0.41731229,120910.0,120900.0,0.39332738]
[1759862721602,0.01658,120910.0,120900.0,1.09400931]
[1759862721811,0.2519,120910.0,120900.0,1.09400931]
[1759862723156,0.18199229,120910.0,120900.0,0.39332738]
[1759862723349,0.41731229,120910.0,120900.0,0.32435738]
[1759862723922,0.40073229,120910.0,120900.0,0.32435738]
[1759862726124,0.40073229,120910.0,120900.0,0.15893141]
[1759862726329,0.40073229,120910.0,120900.0,0.32435738]
[1759862727125,0.40073229,120910.0,120900.0,0.39332738]
[1759862728448,0.40073229,120910.0,120900.0,0.15893141]
[1759862728648,0.40073229,120910.0,120900.0,0.32435738]
[1759862729021,0.40073229,120910.0,120900.0,0.15893141]
[1759862729277,0.40073229,120910.0,120900.0,0.32435738]
[1759862729682,0.40069229,120910.0,120900.0,0.39332738]
[1759862730419,0.40069229,120910.0,120900.0,0.00015141]
[1759862730934,0.40069229,120910.0,120900.0,0.02780141]
[1759862730935,0.48673229,120910.0,120900.0,0.02780141]
[1759862731181,0.48673229,120910.0,120900.0,0.07490141]
[1759862731405,0.48673229,120910.0,120900.0,0.00015141]
[1759862731869,0.48673229,120910.0,120900.0,0.02780141]
[1759862732841,0.48673229,120910.0,120900.0,0.07490141]
[1759862733234,0.48673229,120910.0,120900.0,0.32435738]
[1759862733395,0.48673229,120910.0,120900.0,0.39332738]
[1759862733595,0.48673229,120910.0,120900.0,0.22790141]
[1759862734309,0.48673229,120910.0,120900.0,0.15893141]
[1759862734587,0.16541229,120910.0,120900.0,0.15893141]
[1759862734807,0.48673229,120910.0,120900.0,0.15893141]
[1759862735151,0.48673229,120910.0,120900.0,0.22790141]
[1759862735384,0.48673229,120910.0,120900.0,0.15893141]
[1759862735599,0.48673229,120910.0,120900.0,0.13165141]
[1759862736151,0.48673229,120910.0,120900.0,0.05655141]
[1759862736398,0.82673229,120910.0,120900.0,0.00015141]
[1759862736853,1.52630984,120910.0,120900.0,0.00015141]
[1759862737899,1.20498984,120910.0,120900.0,0.00015141]
[1759862738092,1.52626984,120910.0,120900.0,0.00015141]
[1759862738878,1.20498984,120910.0,120900.0,0.00015141]
[1759862739103,1.52626984,120910.0,120900.0,0.00015141]
[1759862739765,3.23426623,120910.0,120900.0,0.00015141]
[1759862740015,2.65093678,120910.0,120900.0,0.00015141]
[1759862740437,7.19060969,120910.0,120900.0,0.00015141]
[1759862741037,7.20600039,120910.0,120900.0,0.00015141]
[1759862741242,7.19060969,120910.0,120900.0,0.00015141]
[1759862741667,2.20599897,120910.0,120900.0,0.00015141]
[1759862741867,7.20599897,120910.0,120900.0,0.00015141]
[1759862742292,7.20799897,120910.0,120900.0,0.00015141]
[1759862742477,7.21099897,120910.0,120900.0,0.00015141]
[1759862742844,2.21099897,120910.0,120900.0,0.00015141]
[1759862743061,7.46915897,120910.0,120900.0,0.00015141]
[1759862743260,7.55519897,120910.0,120900.0,0.00015141]
[1759862744419,5.77248348,120910.0,120900.0,0.00015141]
[1759862744600,6.84645304,120910.0,120900.0,0.00015141]
[1759862744874,1.96359304,120910.0,120900.0,0.00015141]
[1759862745249,7.58004853,120910.0,120900.0,0.00015141]
[1759862745816,6.91456853,120910.0,120900.0,0.00015141]
[1759862746082,6.96367304,120910.0,120900.0,0.00015141]
[1759862746675,6.34721755,120910.0,120900.0,0.00015141]
[1759862746861,1.96367304,120910.0,120900.0,0.00015141]
[1759862747055,6.96367304,120910.0,120900.0,0.00015141]
[1759862747391,1.96367304,120910.0,120900.0,0.00015141]
[1759862747619,6.96367304,120910.0,120900.0,0.00015141]
[1759862749067,6.91367304,120910.0,120900.0,0.00015141]
[1759862749711,1.91367304,120910.0,120900.0,0.00015141]
[1759862749913,6.91367304,120910.0,120900.0,0.00015141]
[1759862750138,6.96338304,120910.0,120900.0,0.00015141]
[1759862751565,6.87734304,120910.0,120900.0,0.00015141]
[1759862751766,6.95838304,120910.0,120900.0,0.00015141]
[1759862752393,7.57483853,120910.0,120900.0,0.00015141]
[1759862752792,2.57483853,120910.0,120900.0,0.00015141]
[1759862752994,7.57483853,120910.0,120900.0,0.00015141]
[1759862753377,2.57483853,120910.0,120900.0,0.00015141]
[1759862753581,7.57483853,120910.0,120900.0,0.00015141]
[1759862754278,7.59141853,120910.0,120900.0,0.00015141]
[1759862754479,2.59141853,120910.0,120900.0,0.00015141]
[1759862754685,7.59141853,120910.0,120900.0,0.00015141]
[1759862755290,7.50537853,120910.0,120900.0,0.00015141]
[1759862755459,7.59141853,120910.0,120900.0,0.00015141]
[1759862755652,2.59141853,120910.0,120900.0,0.00015141]
[1759862755852,7.59141853,120910.0,120900.0,0.00015141]
[1759862756486,0.61308565,120910.0,120900.0,0.00015141]
[1759862756692,2.13079068,120910.0,120900.0,0.00015141]
[1759862756891,3.28002168,120910.0,120900.0,0.00015141]
[1759862757152,5.87403207,120910.0,120900.0,0.00015141]
[1759862757325,2.19745734,120910.0,120900.0,0.00015141]
[1759862757584,5.95627234,120910.0,120900.0,0.00015141]
[1759862757763,6.03918234,120910.0,120900.0,0.00015141]
[1759862757992,6.01976634,120910.0,120900.0,0.00215141]
[1759862758146,2.19445734,120910.0,120900.0,0.00215141]
[1759862758353,6.03705534,120910.0,120900.0,0.00215141]
[1759862758580,6.03698034,120910.0,120900.0,0.00215141]
[1759862758779,2.20214945,120910.0,120900.0,0.00215141]
[1759862758988,6.04459745,120910.0,120900.0,0.00215141]
[1759862759375,6.12659745,120910.0,120900.0,0.00215141]
[1759862759586,6.17631245,120910.0,120900.0,0.00215141]
[1759862759777,2.20214945,120910.0,120900.0,0.00215141]
[1759862759952,6.19706545,120910.0,120900.0,0.00215141]
[1759862760148,6.24677545,120910.0,120900.0,0.00215141]
[1759862760402,2.25185945,120910.0,120900.0,0.00215141]
[1759862760567,6.19792545,120910.0,120900.0,0.00215141]
[1759862760753,6.19792432,120910.0,120900.0,0.00215141]
[1759862760963,2.25185832,120910.0,120900.0,0.00215141]
[1759862761629,6.81017232,120910.0,120900.0,0.00215141]
[1759862761827,2.25185832,120910.0,120900.0,0.00215141]
[1759862762027,7.25185832,120910.0,120900.0,0.00215141]
[1759862762721,7.68576621,120910.0,120900.0,0.00215141]
[1759862763332,7.68577637,120910.0,120900.0,0.00215141]
[1759862763762,2.68577637,120910.0,120900.0,0.00215141]
[1759862763942,7.68577637,120910.0,120900.0,0.00215141]
[1759862764176,2.68577637,120910.0,120900.0,0.00215141]
[1759862764360,7.38662774,120910.0,120900.0,0.00215141]
[1759862764567,6.10440574,120910.0,120900.0,0.00215141]
[1759862764858,6.63244874,120910.0,120900.0,0.00215141]
[1759862765015,6.77379174,120910.0,120900.0,0.00215141]
[1759862765217,6.88147774,120910.0,120900.0,0.00215141]
[1759862765460,6.77718174,120910.0,120900.0,0.00215141]
[1759862765659,6.32559974,120910.0,120900.0,0.00215141]
[1759862765914,6.55653839,120910.0,120900.0,0.00215141]
[1759862766083,6.73634539,120910.0,120900.0,0.00215141]
[1759862766308,6.84123539,120910.0,120900.0,0.00215141]
[1759862766503,7.38789939,120910.0,120900.0,0.00215141]
[1759862766708,7.39195539,120910.0,120900.0,0.00215141]
[1759862766907,7.29292339,120910.0,120900.0,0.00215141]
[1759862767106,7.29382539,120910.0,120900.0,0.00215141]
[1759862767290,7.20763973,120910.0,120900.0,0.00215141]
[1759862767893,7.20853973,120910.0,120900.0,0.00215141]
[1759862768094,7.29384073,120910.0,120900.0,0.00215141]
[1759862768281,7.42147973,120910.0,120900.0,0.00215141]
[1759862768482,6.29045073,120910.0,120900.0,0.00215141]
[1759862768700,7.58074573,120910.0,120900.0,0.00215141]
[1759862769010,7.45186673,120910.0,120900.0,0.00215141]
[1759862769185,7.50426312,120910.0,120900.0,0.00215141]
[1759862769385,7.45260612,120910.0,120900.0,0.00215141]
[1759862769586,7.50124812,120910.0,120900.0,0.00215141]
[1759862769970,7.50129012,120910.0,120900.0,0.00215141]
[1759862770178,7.59827012,120910.0,120900.0,0.00215141]
[1759862770392,7.71678312,120910.0,120900.0,0.00215141]
[1759862770597,7.85055412,120910.0,120900.0,0.00215141]
[1759862771210,7.78291712,120910.0,120900.0,0.00215141]
[1759862771434,0.53557787,120900.0,120890.0,4.83542574]
[1759862771647,2.20845585,120900.0,120890.0,4.83542574]
[1759862772046,5.52340085,120900.0,120890.0,4.83542574]
[1759862772252,2.20845585,120900.0,120890.0,4.83542574]
[1759862772657,7.05446131,120900.0,120890.0,4.83542574]
[1759862772860,6.10259531,120900.0,120890.0,4.83542574]
[1759862773034,6.02491531,120900.0,120890.0,4.83542574]
[1759862773439,6.02691531,120900.0,120890.0,4.83542574]
[1759862773638,2.23630731,120900.0,120890.0,4.83542574]
[1759862773852,6.02791531,120900.0,120890.0,4.83542574]
[1759862774054,6.00515231,120900.0,120890.0,4.83542574]
[1759862774249,2.23630731,120900.0,120890.0,4.83542574]
[1759862774458,6.00482531,120900.0,120890.0,4.83542574]
[1759862774635,2.23630731,120900.0,120890.0,4.83542574]
[1759862774852,2.00106731,120900.0,120890.0,4.83542574]
[1759862775017,1.95644655,120900.0,120890.0,4.83542574]
[1759862775218,2.10490109,120900.0,120890.0,4.83542574]
[1759862775429,2.11261804,120900.0,120890.0,4.83542574]
[1759862775930,2.72907353,120900.0,120890.0,4.83542574]
[1759862776430,2.72135658,120900.0,120890.0,4.83542574]
[1759862777769,2.75150848,120900.0,120890.0,4.83542574]
[1759862779093,2.7349371,120900.0,120890.0,4.83542574]
[1759862779299,2.75978736,120900.0,120890.0,4.83542574]
[1759862779938,1.76704971,120900.0,120890.0,4.83542574]
[1759862780149,2.04633571,120900.0,120890.0,4.83542574]
[1759862780374,1.45401071,120900.0,120890.0,4.83542574]
[1759862780574,1.69327528,120900.0,120890.0,4.83542574]
[1759862780778,1.68555971,120900.0,120890.0,4.83542574]
[1759862781381,1.68455971,120900.0,120890.0,4.83542574]
[1759862782242,1.68255971,120900.0,120890.0,4.83542574]
[1759862782624,1.68355971,120900.0,120890.0,4.83542574]
[1759862789100,2.30053612,120900.0,120890.0,4.83542574]
[1759862791195,0.24039825,120900.0,120890.0,4.83542574]
[1759862791335,1.76195796,120900.0,120890.0,4.90937574]
[1759862791550,0.86852606,120900.0,120890.0,4.93753574]
[1759862791774,2.10195796,120900.0,120890.0,4.89245574]
[1759862792187,1.76195796,120900.0,120890.0,4.83542574]
[1759862792409,2.10195796,120900.0,120890.0,4.83542574]
[1759862792830,2.26738393,120900.0,120890.0,4.83542574]
[1759862793255,2.10195796,120900.0,120890.0,4.83542574]
[1759862793814,2.26738393,120900.0,120890.0,4.83542574]
[1759862795366,2.10195796,120900.0,120890.0,4.83542574]
[1759862795776,2.28281978,120900.0,120890.0,4.83542574]
[1759862796868,0.86848606,120900.0,120890.0,4.83542574]
[1759862797246,2.10191796,120900.0,120890.0,4.83542574]
[1759862798501,0.63328606,120900.0,120890.0,5.15810539]
[1759862798709,1.48520201,120900.0,120890.0,5.15810539]
[1759862799128,1.50178201,120900.0,120890.0,5.15810539]
[1759862799343,0.56382606,120900.0,120890.0,5.22816539]
[1759862799558,0.66224,120900.0,120890.0,5.84488134]
[1759862799917,0.341,120900.0,120890.0,5.84488134]
[1759862800120,0.5762,120900.0,120890.0,5.84488134]
[1759862800372,0.2362,120900.0,120890.0,5.84488134]
[1759862800779,0.2352,120900.0,120890.0,5.84988134]
[1759862800979,1.08397695,120910.0,120900.0,0.16542597]
[1759862801129,0.42324728,120910.0,120900.0,0.39042597]
[1759862801327,0.34012522,120910.0,120900.0,0.39042597]
[1759862801654,0.66136522,120910.0,120900.0,0.39042597]
[1759862803114,0.66136522,120910.0,120900.0,0.39342597]
[1759862803322,1.27808117,120910.0,120900.0,0.39342597]
[1759862803533,0.95684117,120910.0,120900.0,0.39342597]
[1759862803736,1.27808117,120910.0,120900.0,0.39342597]
[1759862804331,1.27808117,120910.0,120900.0,0.32336597]
[1759862804635,0.66136522,120910.0,120900.0,0.39402597]
[1759862805230,1.27808117,120910.0,120900.0,0.39402597]
[1759862805437,1.44349346,120910.0,120900.0,0.2286]
[1759862806400,0.82677751,120910.0,120900.0,0.2286]
[1759862806667,1.44349346,120910.0,120900.0,0.15768]
[1759862806881,1.44349346,120910.0,120900.0,0.13016]
[1759862807350,1.52661552,120910.0,120900.0,0.13016]
[1759862807551,1.52661552,120910.0,120900.0,0.05934]
[1759862807785,1.52661552,120910.0,120900.0,0.003]
[1759862808917,0.16542597,120900.0,120890.0,4.86374574]
[1759862809129,1.01730192,120900.0,120890.0,4.96277574]
[1759862809578,0.85187595,120900.0,120890.0,5.06121574]
[1759862809775,0.93791595,120900.0,120890.0,5.06121574]
[1759862810037,0.93791595,120900.0,120890.0,4.91785574]
[1759862810215,0.93791595,120900.0,120890.0,4.89194574]
[1759862810450,1.97775396,120900.0,120890.0,4.89494574]
[1759862810670,1.97775396,120900.0,120890.0,4.83542574]
[1759862811793,1.97875396,120900.0,120890.0,4.83542574]
[1759862812018,0.6622,120900.0,120890.0,5.06121574]
[1759862812239,0.6622,120900.0,120890.0,5.67793169]
[1759862812482,0.001,120900.0,120890.0,5.67793169]
[1759862812853,0.001,120900.0,120890.0,6.29464764]
[1759862812854,0.23616,120900.0,120890.0,6.29464764]
[1759862813076,0.23616,120900.0,120890.0,5.68093169]
[1759862813283,0.23516,120900.0,120890.0,5.06121574]
[1759862813481,0.23516,120900.0,120890.0,5.67793169]
[1759862813679,0.23516,120900.0,120890.0,5.68293169]
[1759862814042,0.23516,120900.0,120890.0,5.67793169]
[1759862814431,0.23516,120900.0,120890.0,5.68093169]
[1759862815309,0.23516,120900.0,120890.0,5.68793169]
[1759862817862,0.00012522,120910.0,120890.0,5.68793169]
[1759862817985,0.23512,120900.0,120890.0,4.89034574]
[1759862818212,0.23512,120900.0,120890.0,5.00029574]
[1759862818635,0.23512,120900.0,120890.0,5.07121574]
[1759862819253,0.23512,120900.0,120890.0,5.68793169]
[1759862820084,0.23512,120900.0,120890.0,5.73208633]
[1759862820277,0.23512,120900.0,120890.0,6.30464764]
[1759862820482,0.00012522,120910.0,120890.0,6.53976764]
[1759862820718,0.23524522,120910.0,120900.0,1.3043519]
[1759862820921,0.23524522,120910.0,120900.0,1.4592219]
[1759862821522,0.00012522,120910.0,120900.0,1.4592219]
[1759862821680,0.23524522,120910.0,120900.0,1.5392187]
[1759862821912,0.23524522,120910.0,120900.0,1.5442187]
[1759862822110,0.23524522,120910.0,120900.0,0.23079]
[1759862822317,0.23524522,120910.0,120900.0,1.4642219]
[1759862822952,0.23524522,120910.0,120900.0,0.23079]
[1759862823128,0.23524522,120910.0,120900.0,1.4652219]
[1759862823329,0.00012522,120910.0,120900.0,1.4652219]
[1759862823616,0.40065751,120910.0,120900.0,0.23179]
[1759862824042,1.01737346,120910.0,120900.0,0.13335]
[1759862824645,1.35737346,120910.0,120900.0,0.13335]
[1759862826478,1.44049552,120910.0,120900.0,0.006]
[1759862826655,3.36426347,120910.0,120900.0,0.006]
[1759862826904,3.42108171,120910.0,120900.0,1e-08]
[1759862827076,3.46899222,120910.0,120900.0,1e-08]
[1759862827277,3.78304032,120910.0,120900.0,1e-08]
[1759862827477,0.50542597,120900.0,120890.0,4.83542574]
[1759862827677,1.90801993,120900.0,120890.0,4.83542574]
[1759862828559,4.02433538,120900.0,120890.0,4.83542574]
[1759862828758,7.51650533,120900.0,120890.0,4.33574175]
[1759862828972,7.61412566,120900.0,120890.0,4.18011408]
[1759862829166,7.61412566,120900.0,120890.0,4.00994606]
[1759862829372,7.61512566,120900.0,120890.0,3.94731258]
[1759862829826,7.61412566,120900.0,120890.0,3.94731258]
[1759862830048,7.61812566,120900.0,120890.0,3.94831258]
[1759862830488,0.60207591,120900.0,120890.0,3.94831258]
[1759862830716,1.93051643,120900.0,120890.0,3.97563258]
[1759862830954,2.59532738,120900.0,120890.0,3.94831258]
[1759862831170,2.63897338,120900.0,120890.0,3.94831258]
[1759862831375,3.47190201,120900.0,120890.0,3.94831258]
[1759862831586,3.25594401,120900.0,120890.0,3.94831258]
[1759862831793,2.13988601,120900.0,120890.0,3.94831258]
[1759862832008,4.65660101,120900.0,120890.0,3.94831258]
[1759862832223,3.99047101,120900.0,120890.0,3.94731258]
[1759862832428,4.01253201,120900.0,120890.0,3.94731258]
[1759862832663,3.66816501,120900.0,120890.0,3.94731258]
[1759862832862,3.29329301,120900.0,120890.0,3.94731258]
[1759862833063,2.14088601,120900.0,120890.0,3.94731258]
[1759862833312,3.23084901,120900.0,120890.0,3.94731258]
[1759862833542,3.31160072,120900.0,120890.0,3.94731258]
[1759862833749,3.33644915,120900.0,120890.0,3.94731258]
[1759862834349,2.15334615,120900.0,120890.0,3.94731258]
[1759862834551,3.03396915,120900.0,120890.0,3.94731258]
[1759862834710,3.57919915,120900.0,120890.0,3.94731258]
[1759862834924,2.13678615,120900.0,120890.0,3.94731258]
[1759862835091,3.35388415,120900.0,120890.0,3.94731258]
[1759862835473,3.57217115,120900.0,120890.0,3.94731258]
[1759862835676,3.20796615,120900.0,120890.0,3.94731258]
[1759862835885,3.87119515,120900.0,120890.0,3.94731258]
[1759862836091,4.35207015,120900.0,120890.0,3.94731258]
[1759862836211,3.71863115,120900.0,120890.0,3.94731258]
[1759862836416,1.25293141,120900.0,120890.0,4.01903258]
[1759862836623,1.45359698,120900.0,120890.0,4.10499258]
[1759862837056,2.07031293,120900.0,120890.0,3.94731258]
[1759862837263,2.40531293,120900.0,120890.0,3.97476258]
[1759862837980,2.40631293,120900.0,120890.0,3.97476258]
[1759862840245,2.40631293,120900.0,120890.0,3.94731258]
[1759862841650,1.17288103,120900.0,120890.0,3.97476258]
[1759862841829,2.40631293,120900.0,120890.0,3.97476258]
[1759862842226,0.58954803,120900.0,120890.0,4.10499258]
[1759862842435,0.08704,120900.0,120890.0,4.95688818]
[1759862842661,0.32216,120900.0,120890.0,4.95688818]
[1759862843252,0.48758597,120900.0,120890.0,4.17473258]
[1759862843484,0.16642597,120900.0,120890.0,4.17573258]
[1759862843667,0.40058597,120900.0,120890.0,4.17573258]
[1759862843876,0.40058597,120900.0,120890.0,4.17673258]
[1759862844083,0.23516,120900.0,120890.0,4.95888818]
[1759862844248,0.78225346,120910.0,120890.0,4.34217223]
[1759862844428,0.59157751,120910.0,120900.0,0.18315]
[1759862844633,0.82669751,120910.0,120900.0,0.22742]
[1759862844840,1.44341346,120910.0,120900.0,0.22742]
[1759862845440,1.44441346,120910.0,120900.0,0.22742]
[1759862845645,1.12325346,120910.0,120900.0,0.22742]
[1759862845852,1.44441346,120910.0,120900.0,0.22742]
[1759862846708,0.00012522,120910.0,120900.0,0.39284597]
[1759862846906,0.23524522,120910.0,120900.0,0.39284597]
[1759862847128,0.23524522,120910.0,120900.0,0.39384597]
[1759862847742,0.23524522,120910.0,120900.0,0.39484597]
[1759862847874,0.78225346,120910.0,120900.0,0.39484597]
[1759862848069,0.00012522,120910.0,120900.0,1.01156192]
[1759862848581,0.23524522,120910.0,120900.0,1.01156192]
[1759862848829,0.23524522,120910.0,120900.0,1.09155872]
[1759862849035,0.23524522,120910.0,120900.0,1.01156192]
[1759862851150,0.23524522,120910.0,120900.0,1.01115918]
[1759862851767,0.23524522,120910.0,120900.0,1.32940124]
[1759862852996,0.00012522,120910.0,120900.0,1.94571445]
[1759862853455,0.00012522,120910.0,120900.0,1.99841421]
[1759862854437,0.00012522,120910.0,120900.0,1.94571445]
[1759862855430,0.00012522,120910.0,120900.0,1.32940124]
[1759862855632,0.00012522,120910.0,120900.0,1.09428124]
[1759862855832,0.00012522,120910.0,120900.0,1.32936124]
[1759862856872,0.00012522,120910.0,120900.0,1.97582635]
[1759862857037,0.00012522,120910.0,120900.0,2.05582315]
[1759862857881,0.00012522,120910.0,120900.0,2.05482315]
[1759862858091,0.00012522,120910.0,120900.0,2.05382315]
[1759862858302,0.00012522,120910.0,120900.0,1.98182635]
[1759862858543,0.00112522,120910.0,120900.0,1.98682635]
[1759862858731,0.00112522,120910.0,120900.0,1.34036124]
[1759862858907,0.00112522,120910.0,120900.0,1.95667445]
[1759862859765,0.00112522,120910.0,120900.0,2.00723864]
[1759862861216,0.00112522,120910.0,120900.0,2.00474264]
[1759862861992,0.00112522,120910.0,120900.0,2.00470264]
[1759862863547,0.00112522,120910.0,120900.0,1.36797714]
[1759862864732,0.00112522,120910.0,120900.0,1.98429035]
[1759862869176,0.00112522,120910.0,120900.0,0.75166393]
[1759862869708,0.00112522,120910.0,120900.0,1.98429035]
[1759862869914,0.00112522,120910.0,120900.0,1.74925035]
[1759862870241,0.00112522,120910.0,120900.0,1.98429035]
[1759862871468,0.00112522,120910.0,120900.0,2.02876899]
[1759862872456,0.00112522,120910.0,120900.0,2.09880714]
[1759862873504,1e-08,120910.0,120900.0,3.28101291]
[1759862873703,1e-08,120910.0,120900.0,3.24643193]
[1759862874141,1e-08,120910.0,120900.0,3.38255344]
[1759862874345,0.00099426,120960.0,120950.0,0.16535758]
[1759862874559,0.00104476,120960.0,120950.0,0.16535758]
[1759862874762,0.00104476,120960.0,120950.0,0.39020758]
[1759862876496,0.00204476,120960.0,120950.0,0.39020758]
[1759862877130,0.00204476,120960.0,120950.0,0.39220758]
[1759862879513,0.61835797,120960.0,120950.0,0.32367758]
[1759862879656,0.78370188,120960.0,120950.0,0.29650758]
[1759862879865,0.78370188,120960.0,120950.0,0.22329758]
[1759862880141,0.78628917,120960.0,120950.0,0.22329758]
[1759862880597,0.78628917,120960.0,120950.0,0.002]
[1759862881492,0.78628917,120960.0,120950.0,0.03029]
[1759862882305,0.78628917,120960.0,120950.0,0.19564758]
[1759862882517,0.78628917,120960.0,120950.0,0.24037758]
[1759862882722,1.02152917,120960.0,120950.0,0.24037758]
[1759862882925,1.10752917,120960.0,120950.0,0.07502]
[1759862883489,1.10752917,120960.0,120950.0,0.10267]
[1759862883735,0.92559984,120960.0,120950.0,0.10267]
[1759862884738,0.92559984,120960.0,120950.0,0.26802758]
[1759862884947,0.92559984,120960.0,120950.0,0.10267]
[1759862886422,0.92559984,120960.0,120950.0,0.26802758]
[1759862886667,0.92559984,120960.0,120950.0,0.32367758]
[1759862887210,0.0004,120970.0,120960.0,0.16534391]
[1759862887537,0.0864,120970.0,120960.0,1.00650712]
[1759862887743,0.3164,120970.0,120960.0,1.00650712]
[1759862888067,0.3164,120970.0,120960.0,0.39019391]
[1759862888811,0.3214,120970.0,120960.0,0.39019391]
[1759862889716,0.3214,120970.0,120960.0,1.00650712]
[1759862890264,0.0054,120970.0,120960.0,1.00650712]
[1759862890690,0.32672,120970.0,120960.0,1.00650712]
[1759862893111,0.00091731,120970.0,120960.0,1.00750712]
[1759862893257,0.32515731,120970.0,120960.0,1.00750712]
[1759862893666,0.00391731,120970.0,120960.0,0.39119391]
[1759862893866,0.00391731,120970.0,120960.0,1.00750712]
[1759862894072,0.32515731,120970.0,120960.0,1.00750712]
[1759862894397,0.32515731,120970.0,120960.0,1.08750392]
[1759862895253,0.32515731,120970.0,120960.0,1.00750712]
[1759862895373,0.00391731,120970.0,120960.0,1.00750712]
[1759862895571,0.32515731,120970.0,120960.0,1.00750712]
[1759862895822,0.00391731,120970.0,120960.0,1.00750712]
[1759862896030,0.32511731,120970.0,120960.0,1.00750712]
[1759862899134,0.32511731,120970.0,120960.0,0.39119391]
[1759862899424,0.00391731,120970.0,120960.0,1.6821315]
[1759862899635,0.23903731,120970.0,120960.0,0.44950508]
[1759862899850,0.23903731,120970.0,120960.0,1.6821315]
[1759862900144,0.00391731,120970.0,120960.0,1.6821315]
[1759862900335,0.23903731,120970.0,120960.0,1.6821315]